fUST/lending_fUST_20240127
["ID","MTS","AMOUNT","RATE_DAILY","PERIOD"]
[312815383,1706293439510,-577.69,0.00044931,31]
[312815384,1706293439534,-1103.11,0.00044931,31]
[312815385,1706293439558,-1152.12,0.00044931,31]
[312815386,1706293439581,-500.0,0.00044931,31]
[312815387,1706293439604,-500.0,0.00044931,31]
[312815388,1706293439628,-2186.0,0.00044931,31]
[312815389,1706293439650,-628.86,0.00044931,31]
[312815390,1706293439673,-1292.09,0.00044931,31]
[312815391,1706293439696,-500.0,0.00044931,31]
[312815392,1706293439718,-500.0,0.00044931,31]
[312815393,1706293439741,-500.0,0.00044931,31]
[312815394,1706293439764,-500.0,0.00044931,31]
[312815395,1706293439786,-1091.23,0.00044931,31]
[312815396,1706293439810,-2765.96,0.00044931,31]
[312815397,1706293439832,-500.0,0.00044931,31]
[312815398,1706293439854,-500.0,0.00044931,31]
[312815399,1706293439876,-500.0,0.00044931,31]
[312815400,1706293439900,-500.0,0.00044931,31]
[312815401,1706293439923,-500.0,0.00044931,31]
[312815402,1706293439946,-500.0,0.00044931,31]
[312815403,1706293439969,-477.16066565,0.00044931,31]
[312815404,1706293439995,-650.72,0.00044931,31]
[312815405,1706293440018,-1075.54,0.00044931,31]
[312815406,1706293440043,-500.0,0.00044931,31]
[312815407,1706293440068,-10537.96841435,0.00044999,120]
[312815408,1706293440092,-1000.0,0.00045,45]
[312815409,1706293440115,-152.8106738,0.00045052,30]
[312815410,1706293440137,-152.8106738,0.00045255,30]
[312815411,1706293440160,-151.78992728,0.00045319,30]
[312815412,1706293440182,-152.8106738,0.00045343,30]
[312815413,1706293440205,-152.8106738,0.00045359,30]
[312815414,1706293440227,-151.78992729,0.00045404,30]
[312815415,1706293440250,-500.0,0.00045479,31]
[312815416,1706293440273,-559.85012896,0.00045479,31]
[312815417,1706293440298,-500.0,0.00045479,31]
[312815418,1706293440321,-388.23953761,0.00045479,31]
[312815420,1706293440344,-500.0,0.00045479,31]
[312815421,1706293440367,-500.0,0.00045479,31]
[312815422,1706293440389,-708.74,0.00045479,31]
[312815423,1706293440411,-500.0,0.00045479,31]
[312815424,1706293440434,-500.0,0.00045479,31]
[312815425,1706293440456,-500.0,0.00045479,31]
[312815426,1706293440478,-500.0,0.00045479,31]
[312815427,1706293440499,-500.0,0.00045479,31]
[312815428,1706293440521,-500.0,0.00045479,31]
[312815429,1706293440543,-500.0,0.00045479,31]
[312815430,1706293440566,-233.50664149,0.00045479,31]
[312815431,1706293440589,-500.0,0.00045479,31]
[312815432,1706293440611,-500.0,0.00045479,31]
[312815433,1706293440633,-500.0,0.00045479,31]
[312815434,1706293440656,-423.41947215,0.00045479,31]
[312815435,1706293440679,-1311.9,0.00045479,31]
[312815436,1706293440701,-500.0,0.00045479,31]
[312815437,1706293440724,-500.0,0.00045479,31]
[312815438,1706293440747,-500.0,0.00045479,31]
[312815439,1706293440768,-500.0,0.00045479,31]
[312815440,1706293440791,-500.0,0.00045479,31]
[312815441,1706293440815,-500.0,0.00045479,31]
[312815442,1706293440837,-500.0,0.00045479,31]
[312815443,1706293440859,-500.0,0.00045479,31]
[312815444,1706293440882,-500.0,0.00045479,31]
[312815445,1706293440907,-500.0,0.00045479,31]
[312815446,1706293440930,-500.0,0.00045479,31]
[312815447,1706293440952,-500.0,0.00045479,31]
[312815448,1706293440975,-500.0,0.00045479,31]
[312815449,1706293440999,-500.0,0.00045479,31]
[312815450,1706293441106,-500.0,0.00045479,31]
[312815451,1706293441131,-500.0,0.00045479,31]
[312815452,1706293441155,-500.0,0.00045479,31]
[312815453,1706293441178,-500.0,0.00045479,31]
[312815454,1706293441202,-500.0,0.00045479,31]
[312815455,1706293441226,-500.0,0.00045479,31]
[312815456,1706293441250,-500.0,0.00045479,31]
[312815457,1706293441272,-500.0,0.00045479,31]
[312815458,1706293441296,-500.0,0.00045479,31]
[312815459,1706293441323,-500.0,0.00045479,31]
[312815460,1706293441345,-500.0,0.00045479,31]
[312815461,1706293441368,-500.0,0.00045479,31]
[312815462,1706293441391,-555.75021037,0.00045479,31]
[312815463,1706293441414,-500.0,0.00045479,31]
[312815464,1706293441436,-1430.27,0.00045479,31]
[312815465,1706293441459,-500.0,0.00045479,31]
[312815466,1706293441481,-500.0,0.00045479,31]
[312815467,1706293441506,-500.0,0.00045479,31]
[312815468,1706293441529,-500.0,0.00045479,31]
[312815469,1706293441552,-1154.93,0.00045479,31]
[312815470,1706293441576,-611.61,0.00045479,31]
[312815471,1706293441600,-500.0,0.00045479,31]
[312815472,1706293441623,-2364.75,0.00045479,31]
[312815473,1706293441647,-500.0,0.00045479,31]
[312815474,1706293441671,-4136.53,0.00045479,31]
[312815475,1706293441694,-500.0,0.00045479,31]
[312815476,1706293441717,-469.94440991,0.00045479,31]
[312815477,1706293441740,-1509.19,0.00045479,31]
[312815478,1706293441763,-500.0,0.00045479,31]
[312815479,1706293441785,-658.24,0.00045479,31]
[312815480,1706293441809,-500.0,0.00045479,31]
[312815482,1706293441833,-956.29,0.00045479,31]
[312815483,1706293441857,-500.0,0.00045479,31]
[312815484,1706293441881,-500.0,0.00045479,31]
[312815485,1706293441908,-500.0,0.00045479,31]
[312815486,1706293441932,-649.03,0.00045479,31]
[312815487,1706293441956,-500.0,0.00045479,31]
[312815488,1706293441981,-500.0,0.00045479,31]
[312815489,1706293442005,-549.63,0.00045479,31]
[312815490,1706293442028,-500.0,0.00045479,31]
[312815491,1706293442052,-500.0,0.00045479,31]
[312815492,1706293442076,-1502.81,0.00045479,31]
[312815493,1706293442100,-2200.41,0.00045479,31]
[312815494,1706293442123,-6821.44,0.00045479,31]
[312815495,1706293442146,-3334.12,0.00045479,31]
[312815496,1706293442168,-500.0,0.00045479,31]
[312815497,1706293442191,-500.0,0.00045479,31]
[312815498,1706293442213,-500.0,0.00045479,31]
[312815499,1706293442236,-571.82,0.00045479,31]
[312815500,1706293442259,-500.0,0.00045479,31]
[312815501,1706293442281,-500.0,0.00045479,31]
[312815502,1706293442304,-500.0,0.00045479,31]
[312815503,1706293442326,-512.67517553,0.00045479,31]
[312815504,1706293442349,-2314.96,0.00045479,31]
[312815505,1706293442372,-577.69,0.00045479,31]
[312815506,1706293442395,-1152.12,0.00045479,31]
[312815507,1706293442418,-1103.11,0.00045479,31]
[312815508,1706293442440,-500.0,0.00045479,31]
[312815509,1706293442463,-500.0,0.00045479,31]
[312815510,1706293442486,-2186.0,0.00045479,31]
[312815511,1706293442509,-628.86,0.00045479,31]
[312815512,1706293442531,-1292.09,0.00045479,31]
[312815513,1706293442555,-500.0,0.00045479,31]
[312815514,1706293442578,-500.0,0.00045479,31]
[312815515,1706293442601,-500.0,0.00045479,31]
[312815516,1706293442624,-500.0,0.00045479,31]
[312815517,1706293442646,-1091.23,0.00045479,31]
[312815518,1706293442669,-2765.96,0.00045479,31]
[312815519,1706293442691,-500.0,0.00045479,31]
[312815520,1706293442714,-500.0,0.00045479,31]
[312815521,1706293442736,-500.0,0.00045479,31]
[312815522,1706293442758,-500.0,0.00045479,31]
[312815523,1706293442780,-500.0,0.00045479,31]
[312815524,1706293442803,-500.0,0.00045479,31]
[312815525,1706293442826,-650.72,0.00045479,31]
[312815526,1706293442849,-1075.54,0.00045479,31]
[312815527,1706293442877,-500.0,0.00045479,31]
[312815528,1706293442901,-152.8106738,0.00045714,30]
[312815529,1706293442924,-152.81067386,0.00045751,30]
[312815530,1706293442947,-546.00283971,0.0004583,120]
[312815531,1706293442970,-202.67,0.0004588,120]
[312815532,1706293443076,-150.5,0.0004595,120]
[312815533,1706293443101,-150.5,0.0004596,120]
[312815534,1706293443125,-500.0,0.00046027,31]
[312815535,1706293443147,-500.0,0.00046027,31]
[312815536,1706293443169,-217.85580793,0.00046027,31]
[312815537,1706293443191,-500.0,0.00046027,31]
[312815538,1706293443215,-708.74,0.00046027,31]
[312815539,1706293443237,-500.0,0.00046027,31]
[312815540,1706293443260,-500.0,0.00046027,31]
[312815541,1706293443282,-500.0,0.00046027,31]
[312815542,1706293443303,-500.0,0.00046027,31]
[312815543,1706293443325,-500.0,0.00046027,31]
[312815544,1706293443347,-500.0,0.00046027,31]
[312815545,1706293443369,-500.0,0.00046027,31]
[312815547,1706293443392,-500.0,0.00046027,31]
[312815548,1706293443415,-500.0,0.00046027,31]
[312815549,1706293443437,-470.44829457,0.00046027,31]
[312815550,1706293443460,-1311.9,0.00046027,31]
[312815551,1706293443483,-500.0,0.00046027,31]
[312815552,1706293443507,-500.0,0.00046027,31]
[312815553,1706293443530,-500.0,0.00046027,31]
[312815554,1706293443554,-500.0,0.00046027,31]
[312815555,1706293443587,-500.0,0.00046027,31]
[312815556,1706293443613,-324.72354449,0.00046027,31]
[312815557,1706293443637,-500.0,0.00046027,31]
[312815558,1706293443660,-506.30192948,0.00046027,31]
[312815559,1706293443684,-500.0,0.00046027,31]
[312815560,1706293443707,-500.0,0.00046027,31]
[312815561,1706293443729,-500.0,0.00046027,31]
[312815562,1706293443752,-500.0,0.00046027,31]
[312815563,1706293443775,-500.0,0.00046027,31]
[312815564,1706293443799,-500.0,0.00046027,31]
[312815565,1706293443824,-522.69117294,0.00046027,31]
[312815566,1706293443848,-500.0,0.00046027,31]
[312815567,1706293443871,-500.0,0.00046027,31]
[312815568,1706293443895,-339.61924083,0.00046027,31]
[312815569,1706293443918,-500.0,0.00046027,31]
[312815570,1706293443941,-500.0,0.00046027,31]
[312815571,1706293443964,-500.0,0.00046027,31]
[312815572,1706293443990,-500.0,0.00046027,31]
[312815573,1706293444013,-500.0,0.00046027,31]
[312815574,1706293444037,-500.0,0.00046027,31]
[312815575,1706293444064,-1430.27,0.00046027,31]
[312815576,1706293444086,-500.0,0.00046027,31]
[312815577,1706293444109,-500.0,0.00046027,31]
[312815578,1706293444132,-276.3267351,0.00046027,31]
[312815579,1706293444156,-500.0,0.00046027,31]
[312815580,1706293444179,-1154.93,0.00046027,31]
[312815581,1706293444202,-611.61,0.00046027,31]
[312815582,1706293444226,-500.0,0.00046027,31]
[312815583,1706293444249,-2364.75,0.00046027,31]
[312815584,1706293444272,-500.0,0.00046027,31]
[312815585,1706293444296,-4136.53,0.00046027,31]
[312815586,1706293444321,-500.0,0.00046027,31]
[312815587,1706293444345,-1509.19,0.00046027,31]
[312815588,1706293444369,-500.0,0.00046027,31]
[312815589,1706293444393,-658.24,0.00046027,31]
[312815590,1706293444416,-500.0,0.00046027,31]
[312815591,1706293444439,-956.29,0.00046027,31]
[312815592,1706293444462,-500.0,0.00046027,31]
[312815593,1706293444485,-500.0,0.00046027,31]
[312815594,1706293444508,-500.34549594,0.00046027,31]
[312815596,1706293444531,-649.03,0.00046027,31]
[312815598,1706293444555,-500.0,0.00046027,31]
[312815600,1706293444579,-500.0,0.00046027,31]
[312815602,1706293444603,-549.63,0.00046027,31]
[312815604,1706293444626,-500.0,0.00046027,31]
[312815606,1706293444650,-500.0,0.00046027,31]
[312815608,1706293444673,-1502.81,0.00046027,31]
[312815610,1706293444697,-2200.41,0.00046027,31]
[312815612,1706293444722,-6821.44,0.00046027,31]
[312815614,1706293444746,-3334.12,0.00046027,31]
[312815617,1706293444768,-500.0,0.00046027,31]
[312815619,1706293444791,-500.0,0.00046027,31]
[312815621,1706293444817,-500.0,0.00046027,31]
[312815623,1706293444843,-571.82,0.00046027,31]
[312815625,1706293444866,-500.0,0.00046027,31]
[312815627,1706293444893,-500.0,0.00046027,31]
[312815629,1706293444917,-500.0,0.00046027,31]
[312815635,1706293445027,-2314.96,0.00046027,31]
[312815637,1706293445056,-577.69,0.00046027,31]
[312815639,1706293445084,-1152.12,0.00046027,31]
[312815641,1706293445110,-1103.11,0.00046027,31]
[312815643,1706293445135,-500.0,0.00046027,31]
[312815645,1706293445161,-500.0,0.00046027,31]
[312815647,1706293445187,-2186.0,0.00046027,31]
[312815649,1706293445213,-628.86,0.00046027,31]
[312815651,1706293445238,-1292.09,0.00046027,31]
[312815653,1706293445263,-500.0,0.00046027,31]
[312815655,1706293445288,-500.0,0.00046027,31]
[312815657,1706293445314,-500.0,0.00046027,31]
[312815659,1706293445340,-500.0,0.00046027,31]
[312815661,1706293445365,-1091.23,0.00046027,31]
[312815663,1706293445391,-2765.96,0.00046027,31]
[312815665,1706293445415,-500.0,0.00046027,31]
[312815667,1706293445439,-500.0,0.00046027,31]
[312815670,1706293445463,-500.0,0.00046027,31]
[312815672,1706293445488,-500.0,0.00046027,31]
[312815674,1706293445513,-500.0,0.00046027,31]
[312815676,1706293445537,-500.0,0.00046027,31]
[312815678,1706293445562,-650.72,0.00046027,31]
[312815680,1706293445587,-1075.54,0.00046027,31]
[312815682,1706293445612,-500.0,0.00046027,31]
[312815684,1706293445636,-3141.0,0.00046137,30]
[312815686,1706293445662,-2000.0,0.00046394,30]
[312815689,1706293445689,-1208.35042162,0.00046571,30]
[312815691,1706293445712,-500.0,0.00046575,31]
[312815692,1706293445736,-500.0,0.00046575,31]
[312815693,1706293445759,-500.0,0.00046575,31]
[312815694,1706293445783,-708.74,0.00046575,31]
[312815695,1706293445806,-500.0,0.00046575,31]
[312815696,1706293445829,-500.0,0.00046575,31]
[312815697,1706293445855,-500.0,0.00046575,31]
[312815699,1706293445879,-500.0,0.00046575,31]
[312815701,1706293445905,-211.00921307,0.00046575,31]
[312815703,1706293445928,-612.56147242,0.00046575,31]
[312815705,1706293445951,-500.0,0.00046575,31]
[312815707,1706293445975,-535.07861124,0.00046575,31]
[312815709,1706293446003,-500.0,0.00046575,31]
[312815711,1706293446027,-1311.9,0.00046575,31]
[312815713,1706293446052,-500.0,0.00046575,31]
[312815716,1706293446077,-500.0,0.00046575,31]
[312815718,1706293446100,-500.0,0.00046575,31]
[312815720,1706293446125,-500.0,0.00046575,31]
[312815722,1706293446148,-500.0,0.00046575,31]
[312815724,1706293446172,-500.0,0.00046575,31]
[312815726,1706293446197,-500.0,0.00046575,31]
[312815728,1706293446227,-241.38009301,0.00046575,31]
[312815730,1706293446251,-500.0,0.00046575,31]
[312815732,1706293446275,-500.0,0.00046575,31]
[312815734,1706293446300,-617.89136531,0.00046575,31]
[312815736,1706293446328,-500.0,0.00046575,31]
[312815738,1706293446354,-500.0,0.00046575,31]
[312815740,1706293446378,-500.0,0.00046575,31]
[312815742,1706293446404,-500.0,0.00046575,31]
[312815745,1706293446428,-500.0,0.00046575,31]
[312815747,1706293446453,-500.0,0.00046575,31]
[312815749,1706293446476,-500.0,0.00046575,31]
[312815751,1706293446500,-500.0,0.00046575,31]
[312815753,1706293446524,-1430.27,0.00046575,31]
[312815755,1706293446553,-500.0,0.00046575,31]
[312815757,1706293446579,-1154.93,0.00046575,31]
[312815759,1706293446607,-611.61,0.00046575,31]
[312815761,1706293446631,-500.0,0.00046575,31]
[312815763,1706293446655,-2364.75,0.00046575,31]
[312815766,1706293446681,-500.0,0.00046575,31]
[312815768,1706293446706,-4136.53,0.00046575,31]
[312815770,1706293446730,-500.0,0.00046575,31]
[312815772,1706293446754,-1509.19,0.00046575,31]
[312815774,1706293446777,-500.0,0.00046575,31]
[312815776,1706293446802,-658.24,0.00046575,31]
[312815778,1706293446825,-956.29,0.00046575,31]
[312815780,1706293446849,-500.0,0.00046575,31]
[312815782,1706293446873,-649.03,0.00046575,31]
[312815784,1706293446901,-500.0,0.00046575,31]
[312815786,1706293446925,-500.0,0.00046575,31]
[312815792,1706293447031,-549.63,0.00046575,31]
[312815794,1706293447056,-500.0,0.00046575,31]
[312815796,1706293447080,-1502.81,0.00046575,31]
[312815799,1706293447109,-2200.41,0.00046575,31]
[312815800,1706293447134,-6821.44,0.00046575,31]
[312815801,1706293447162,-932.03031438,0.00046575,31]
[312815804,1706293454022,-600000.0,0.00045917,30]
[312815917,1706293831706,-244.15508901,0.00027091,2]
[312815919,1706293831716,-522.41614365,0.00027091,2]
[312815921,1706293831726,-155.04496304,0.00027092,2]
[312815923,1706293831735,-155.04496304,0.00027092,2]
[312815924,1706293831746,-1828.13595294,0.00027092,2]
[312815926,1706293831756,-155.04496304,0.00027093,2]
[312815928,1706293831766,-1243.18794346,0.00027093,2]
[312815929,1706293831775,-1416.35950919,0.00027093,2]
[312815931,1706293831784,-850.88910175,0.00027094,2]
[312815933,1706293831795,-1000.0,0.00029,2]
[312815935,1706293831805,-156.87404588,0.000295,30]
[312815936,1706293831815,-1932.98612217,0.00029765,2]
[312815939,1706293831824,-2452.34138083,0.00029766,2]
[312815941,1706293831836,-2806.3273851,0.00029766,2]
[312815943,1706293831847,-3747.23747037,0.00029766,2]
[312815945,1706293831859,-4479.68727357,0.00029766,2]
[312816376,1706293837831,-20911.81082028,0.00027092,2]
[312816377,1706293837842,-11414.40649013,0.00029766,2]
[312816378,1706293837856,-4023.07,0.0002999,3]
[312816379,1706293837868,-2373.20128333,0.0003,2]
[312816380,1706293837881,-119796.50570957,0.0003,4]
[312816381,1706293837895,-262.3827165,0.0003,4]
[312816382,1706293838030,-336.967,0.0003,4]
[312816383,1706293838045,-419.11,0.0003,4]
[312816384,1706293838060,-18489.5508214,0.0003,4]
[312816385,1706293838072,-155.04496304,0.0003,4]
[312816386,1706293838084,-160.903844,0.00030137,2]
[312816387,1706293838094,-160.903844,0.00031507,2]
[312816388,1706293838106,-166.666666,0.00032477,2]
[312816389,1706293838118,-160.903844,0.00032877,2]
[312816390,1706293838130,-153.0,0.000329,2]
[312816391,1706293838143,-199.2894744,0.000329,2]
[312816392,1706293838154,-199.3339408,0.000329,2]
[312816393,1706293838164,-1066.478966,0.00033036,2]
[312816394,1706293838176,-335.5636504,0.000333,2]
[312816395,1706293838187,-157.3764171,0.000336,2]
[312816396,1706293838198,-153.0,0.000336,2]
[312816397,1706293838209,-160.903844,0.00034247,2]
[312816398,1706293838221,-160.903844,0.00035616,2]
[312816399,1706293838233,-343.15153131,0.00035696,2]
[312816400,1706293838243,-945.75506361,0.00035696,2]
[312816401,1706293838254,-153.0,0.000357,2]
[312816402,1706293838265,-240.36244228,0.0003572,2]
[312816403,1706293838275,-772.10873268,0.0003572,2]
[312816404,1706293838286,-4378.53429885,0.0003572,2]
[312816405,1706293838297,-250.0,0.00036338,15]
[312816406,1706293838307,-158.280104,0.000364,2]
[312816407,1706293838318,-160.903844,0.00036986,2]
[312816408,1706293838329,-155.91130008,0.0003769,4]
[312816409,1706293838339,-660.34126829,0.0003769,7]
[312816410,1706293838350,-4827.68,0.00038155,3]
[312816411,1706293838361,-69008.40695193,0.00038165,4]
[312816412,1706293838372,-50000.0,0.00038242,3]
[312816413,1706293838383,-50000.0,0.0003832,3]
[312816414,1706293838393,-160.903844,0.00038356,2]
[312816415,1706293838404,-50000.0,0.00038397,3]
[312816416,1706293838414,-50000.0,0.00038474,3]
[312816417,1706293838425,-300.0,0.000385,20]
[312816418,1706293838435,-2142.39328841,0.000385,4]
[312816419,1706293838446,-5793.21,0.0003853,3]
[312816420,1706293838457,-156.54,0.0003855,2]
[312816421,1706293838583,-24034.70350793,0.00038551,4]
[312816422,1706293838598,-74169.23804132,0.00038551,5]
[312816423,1706293838607,-50000.0,0.00038551,3]
[312816424,1706293838616,-173.42368059,0.00038642,2]
[312816425,1706293838625,-151.0438027,0.00038743,4]
[312816426,1706293838634,-243.1148142,0.00038814,4]
[312816427,1706293838643,-155.09781245,0.00038815,4]
[312816428,1706293838652,-175.21283828,0.00038815,4]
[312816429,1706293838661,-178.7650238,0.00038815,4]
[312816430,1706293838670,-155.04651395,0.00039029,7]
[312816431,1706293838679,-151.0438027,0.00039533,2]
[312816432,1706293838688,-160.903844,0.00039726,2]
[312816433,1706293838697,-350.0,0.00039972,30]
[312816434,1706293838706,-195.95170694,0.0004,4]
[312816435,1706293838715,-445.289015,0.0004,4]
[312816436,1706293838725,-300.0,0.0004,21]
[312816437,1706293838734,-173.42368057,0.00040261,2]
[312816438,1706293838743,-150.1,0.00040567,2]
[312816439,1706293838753,-862.86802162,0.00040622,10]
[312816440,1706293838762,-160.903844,0.00041096,2]
[312816441,1706293838771,-160.598299,0.0004119,30]
[312816442,1706293838780,-757.709608,0.0004119,30]
[312816443,1706293838789,-474.5644,0.0004119,30]
[312816444,1706293838798,-243.882614,0.0004119,30]
[312816445,1706293838807,-342.392973,0.0004119,30]
[312816446,1706293838816,-1664.159104,0.00041459,4]
[312816447,1706293838825,-300.0,0.000415,22]
[312816448,1706293838834,-7786.31478228,0.00041506,15]
[312816449,1706293838843,-3588.57082209,0.00041643,5]
[312816450,1706293838853,-500.0,0.00041648,2]
[312816451,1706293838861,-3744.23583535,0.00041658,4]
[312816452,1706293838871,-156.54,0.00041658,7]
[312816453,1706293838880,-156.54,0.00041658,7]
[312816454,1706293838889,-500.0,0.00041658,31]
[312816455,1706293838898,-585.10004292,0.00041658,31]
[312816456,1706293838907,-500.0,0.00041658,31]
[312816457,1706293838916,-500.0,0.00041658,31]
[312816458,1706293838925,-498.83167863,0.00041658,31]
[312816459,1706293838934,-500.0,0.00041658,31]
[312816460,1706293838943,-500.0,0.00041658,31]
[312816461,1706293838953,-202.7,0.00041658,31]
[312816462,1706293838962,-500.0,0.00041658,31]
[312816463,1706293838971,-233.36664363,0.00041658,31]
[312816464,1706293838980,-500.0,0.00041658,31]
[312816465,1706293838990,-550.0,0.00041658,31]
[312816466,1706293838999,-500.0,0.00041658,31]
[312816467,1706293839009,-500.0,0.00041658,31]
[312816468,1706293839020,-500.0,0.00041658,31]
[312816469,1706293839031,-500.0,0.00041658,31]
[312816470,1706293839041,-500.0,0.00041658,31]
[312816471,1706293839052,-500.0,0.00041658,31]
[312816472,1706293839062,-500.0,0.00041658,31]
[312816473,1706293839072,-500.0,0.00041658,31]
[312816474,1706293839083,-500.0,0.00041658,31]
[312816475,1706293839095,-500.0,0.00041658,31]
[312816476,1706293839104,-500.0,0.00041658,31]
[312816477,1706293839115,-500.0,0.00041658,31]
[312816478,1706293839125,-500.0,0.00041658,31]
[312816479,1706293839134,-500.0,0.00041658,31]
[312816480,1706293839143,-500.0,0.00041658,31]
[312816481,1706293839153,-500.0,0.00041658,31]
[312816482,1706293839163,-500.0,0.00041658,31]
[312816483,1706293839172,-500.0,0.00041658,31]
[312816484,1706293839181,-500.0,0.00041658,31]
[312816485,1706293839190,-500.0,0.00041658,31]
[312816486,1706293839201,-500.0,0.00041658,31]
[312816487,1706293839210,-500.0,0.00041658,31]
[312816488,1706293839220,-254.81467664,0.00041658,31]
[312816489,1706293839229,-500.0,0.00041658,31]
[312816490,1706293839238,-500.0,0.00041658,31]
[312816491,1706293839248,-500.0,0.00041658,31]
[312816492,1706293839258,-500.0,0.00041658,31]
[312816493,1706293839267,-500.0,0.00041658,31]
[312816494,1706293839277,-500.0,0.00041658,31]
[312816495,1706293839286,-500.0,0.00041658,31]
[312816496,1706293839295,-500.0,0.00041658,31]
[312816497,1706293839304,-500.0,0.00041658,31]
[312816498,1706293839314,-500.0,0.00041658,31]
[312816499,1706293839323,-500.0,0.00041658,31]
[312816500,1706293839332,-500.0,0.00041658,31]
[312816501,1706293839341,-500.0,0.00041658,31]
[312816502,1706293839350,-542.64442149,0.00041658,31]
[312816503,1706293839359,-500.0,0.00041658,31]
[312816504,1706293839368,-58874.24283339,0.00041659,4]
[312816505,1706293839381,-10202.84952288,0.00041659,4]
[312816506,1706293839393,-4446.22071116,0.00041659,4]
[312816643,1706293846692,-1057.94524125,0.00038155,3]
[312816644,1706293846704,-2294.60475875,0.00038155,3]
[312816645,1706293846713,-500.0,0.00041658,31]
[312816646,1706293846723,-500.0,0.00041658,31]
[312816647,1706293846732,-431.5340945,0.00041658,31]
[312816648,1706293846742,-6260.22937449,0.00041659,4]
[312816689,1706294359034,1746.07,0.0002201,2]
[312816690,1706294368227,-4000000.0,0.00045383,30]
[312816691,1706294377737,-4000000.0,0.00045383,30]
[312816714,1706295028319,151.04229184,0.00029513,120]
[312816819,1706295031899,-2035.76851465,0.00027337,2]
[312816821,1706295031908,-51.21120106,0.00027338,2]
[312816827,1706295031962,-401.8631082,0.00027338,2]
[312816829,1706295031972,-155.04496304,0.00027338,2]
[312816831,1706295031981,-161.1289327,0.00027339,2]
[312816833,1706295031990,-629.53268824,0.0002734,2]
[312816835,1706295032000,-533.239483,0.00027346,2]
[312816837,1706295032011,-173.29617945,0.00028247,4]
[312816839,1706295032021,-1423.10869052,0.00028347,2]
[312817061,1706295037968,-19488.70212976,0.00028347,2]
[312817063,1706295037977,-14408.9190454,0.00028351,2]
[312817065,1706295037987,-244.15508901,0.00029363,2]
[312817067,1706295037995,-244.15508901,0.00029366,2]
[312817069,1706295038004,-2075.34158496,0.00029367,2]
[312817071,1706295038014,-30000.0,0.00029369,2]
[312817073,1706295038023,-620.00397915,0.0002937,2]
[312817075,1706295038033,-2844.20023866,0.000295,30]
[312817077,1706295038045,-195.54104758,0.0003,2]
[312817079,1706295038054,-155.04496304,0.0003,4]
[312817081,1706295038064,-151.04229184,0.00030115,30]
[312817083,1706295038073,-160.903846,0.00030137,2]
[312817085,1706295038082,-151.04229184,0.0003073,7]
[312817087,1706295038091,-620.00019896,0.00030838,2]
[312817089,1706295038100,-200.0,0.00031183,15]
[312817091,1706295038109,-151.04229184,0.00031357,4]
[312817093,1706295038118,-151.04229184,0.00031997,2]
[312817095,1706295038128,-4178.49,0.00032867,3]
[312817097,1706295038138,-40486.2207764,0.00032877,2]
[312817099,1706295038147,-158.280104,0.00033482,2]
[312817101,1706295038155,-160.903846,0.00033562,2]
[312817103,1706295038164,-280.0,0.00034302,15]
[312817105,1706295038173,-151.04229184,0.00035552,2]
[312817107,1706295038182,-250.56103709,0.00035552,2]